bitfinex-derivatives/quotes_BTCF0:USTF0_20250803
["timestamp","ask_amount","ask_price","bid_price","bid_amount"]
[1754241514981,0.96474182,114150.0,114140.0,0.7483372]
[1754241517191,1.5908855,114150.0,114140.0,0.7483372]
[1754241517687,1.9516855,114150.0,114140.0,0.7483372]
[1754241519387,1.9516855,114150.0,114140.0,0.684124]
[1754241519588,1.9516855,114150.0,114140.0,0.653564]
[1754241519885,1.9516855,114150.0,114140.0,0.682944]
[1754241520988,1.9516855,114150.0,114140.0,0.415744]
[1754241522690,1.27440942,114150.0,114140.0,0.415744]
[1754241523290,1.27440942,114150.0,114140.0,0.416434]
[1754241523589,1.37549603,114150.0,114140.0,0.416434]
[1754241524191,1.37549603,114150.0,114140.0,0.386364]
[1754241524393,1.37549603,114150.0,114140.0,0.416434]
[1754241524884,1.37549603,114150.0,114140.0,0.386364]
[1754241528487,1.35286581,114150.0,114140.0,0.118164]
[1754241528692,1.37555613,114150.0,114140.0,0.118164]
[1754241531699,1.37555613,114150.0,114140.0,0.0452299]
[1754241532392,0.2272283,114130.0,114120.0,1.77687]
[1754241532598,1.2308999,114130.0,114120.0,1.77687]
[1754241532797,1.2308999,114130.0,114120.0,1.50967]
[1754241533099,1.23391982,114130.0,114120.0,1.58915]
[1754241533595,1.23391982,114130.0,114120.0,1.59115]
[1754241533797,1.23491982,114130.0,114120.0,1.59815]
[1754241534292,1.23491982,114130.0,114120.0,0.40552]
[1754241534497,1.23491982,114130.0,114120.0,0.45907]
[1754241534795,1.23491982,114130.0,114120.0,0.32604]
[1754241534997,1.23491982,114130.0,114120.0,0.42612]
[1754241535195,1.23491982,114130.0,114120.0,0.45907]
[1754241535497,1.23491982,114130.0,114120.0,0.574234]
[1754241536700,1.23491982,114130.0,114120.0,0.541284]
[1754241537101,1.23491982,114130.0,114120.0,0.422074]
[1754241537399,1.23541894,114130.0,114120.0,0.422074]
[1754241537597,1.59621894,114130.0,114120.0,0.154234]
[1754241537897,2.23640987,114130.0,114120.0,0.154234]
[1754241538197,2.24518914,114130.0,114120.0,0.154234]
[1754241538391,2.24518914,114130.0,114120.0,0.124164]
[1754241539991,1.70303786,114130.0,114120.0,0.154234]
[1754241540896,1.69425859,114130.0,114120.0,0.154234]
[1754241542190,1.70287732,114130.0,114120.0,0.154234]
[1754241543300,1.69425859,114130.0,114120.0,0.154234]
[1754241544997,1.7031138,114130.0,114120.0,0.154234]
[1754241546997,1.70312977,114130.0,114120.0,0.154234]
[1754241547801,1.16097849,114130.0,114120.0,0.154234]
[1754241548004,1.70312977,114130.0,114120.0,0.154234]
[1754241548605,1.70312977,114130.0,114120.0,0.219894]
[1754241550007,1.70312977,114130.0,114120.0,0.173364]
[1754241553904,1.69427456,114130.0,114120.0,0.4789778]
[1754241554111,1.59623491,114130.0,114120.0,0.303724]
[1754241554300,1.59623491,114130.0,114120.0,0.4789778]
[1754241554607,1.66408243,114130.0,114120.0,0.4789778]
[1754241555607,1.66408243,114130.0,114120.0,0.303724]
[1754241556710,1.59635095,114130.0,114120.0,0.303724]
[1754241561713,1.23605697,114130.0,114120.0,0.303724]
[1754241562712,1.23605697,114130.0,114120.0,0.4789778]
[1754241562914,1.23656314,114130.0,114120.0,0.4789778]
[1754241563109,1.20318314,114130.0,114120.0,0.4789778]
[1754241564003,1.20360382,114130.0,114120.0,0.4789778]
[1754241564207,1.20360382,114130.0,114120.0,0.303724]
[1754241569915,1.20360382,114130.0,114120.0,0.4789778]
[1754241577032,0.0286582,114130.0,114120.0,0.4789778]
[1754241577222,0.2038966,114130.0,114120.0,1.38204512]
[1754241577624,0.2038966,114130.0,114120.0,0.8397778]
[1754241578928,0.2038966,114130.0,114120.0,0.8377778]
[1754241579126,0.2038966,114130.0,114120.0,0.8397778]
[1754241579325,0.2038966,114130.0,114120.0,1.1065778]
[1754241580134,0.2028966,114130.0,114120.0,1.1035778]
[1754241580526,0.2028966,114130.0,114120.0,1.1015778]
[1754241581534,0.18019031,114130.0,114120.0,1.1015778]
[1754241581737,0.2978677,114130.0,114120.0,1.1015778]
[1754241582034,0.84013502,114130.0,114120.0,1.1015778]
[1754241582433,0.87314502,114130.0,114120.0,1.1015778]
[1754241583540,0.85042763,114130.0,114120.0,1.1015778]
[1754241588334,0.30816031,114130.0,114120.0,1.1015778]
[1754241593742,0.85142763,114130.0,114120.0,1.1025778]
[1754241594139,0.30916031,114130.0,114120.0,1.1035778]
[1754241594633,0.91905779,114130.0,114120.0,1.71347528]
[1754241595032,0.91905779,114130.0,114120.0,1.71247528]
[1754241595441,0.91805779,114130.0,114120.0,1.70847528]
[1754241595642,0.91805779,114130.0,114120.0,1.34867528]
[1754241595942,0.91805779,114130.0,114120.0,1.70947528]
[1754241596244,0.30816031,114130.0,114120.0,1.70947528]
[1754241596541,0.91805779,114130.0,114120.0,1.0995778]
[1754241596740,0.91805779,114130.0,114120.0,1.70947528]
[1754241600144,0.30816031,114130.0,114120.0,1.70947528]
[1754241600342,0.91805779,114130.0,114120.0,1.70947528]
[1754241600742,0.30816031,114130.0,114120.0,1.70947528]
[1754241600944,0.61484939,114130.0,114120.0,1.70947528]
[1754241601344,0.00495191,114130.0,114120.0,2.31937276]
[1754241601543,0.219021,114150.0,114140.0,0.3528831]
[1754241601838,0.2417328,114150.0,114140.0,1.59126058]
[1754241602038,0.85163028,114150.0,114140.0,1.59126058]
[1754241602539,0.89570028,114150.0,114140.0,1.59126058]
[1754241602741,0.2878028,114150.0,114140.0,0.9813631]
[1754241603846,0.2898028,114150.0,114140.0,0.9813631]
[1754241604040,0.2898028,114150.0,114140.0,0.98990171]
[1754241604345,0.2878028,114150.0,114140.0,0.99090171]
[1754241604544,0.2858028,114150.0,114140.0,0.99090171]
[1754241605144,0.2858028,114150.0,114140.0,1.10606571]
[1754241610444,0.3366928,114150.0,114140.0,1.10606571]
[1754241613354,0.3690028,114150.0,114140.0,0.74526571]
[1754241613952,0.91089406,114150.0,114140.0,1.10606571]
[1754241614554,0.3690028,114150.0,114140.0,1.10606571]
[1754241619763,0.3732628,114150.0,114140.0,0.74518571]
[1754241620069,0.91515406,114150.0,114140.0,0.74518571]
[1754241624570,0.91515406,114150.0,114140.0,1.01238571]
[1754241624772,0.98298616,114150.0,114140.0,1.01238571]
[1754241627974,0.98298616,114150.0,114140.0,1.37318571]
[1754241628174,0.98298616,114150.0,114140.0,1.98290907]
[1754241630277,0.3732628,114150.0,114140.0,1.98290907]
[1754241630475,0.98298616,114150.0,114140.0,1.98290907]
[1754241632574,0.97872616,114150.0,114140.0,1.98290907]
[1754241633075,0.3690028,114150.0,114140.0,1.98290907]
[1754241633282,0.97872616,114150.0,114140.0,1.98290907]
[1754241634073,0.97872616,114150.0,114140.0,1.98390907]
[1754241634273,0.97872616,114150.0,114140.0,1.98690907]
[1754241634674,0.97872616,114150.0,114140.0,1.98390907]
[1754241634870,0.97872616,114150.0,114140.0,1.98490907]
[1754241635479,0.97872616,114150.0,114140.0,1.98690907]
[1754241636280,0.97872616,114150.0,114140.0,1.98590907]
[1754241636882,0.97872616,114150.0,114140.0,1.98290907]
[1754241637581,0.97872616,114150.0,114140.0,1.98190907]
[1754241638584,0.98298616,114150.0,114140.0,1.37218571]
[1754241638883,0.98298616,114150.0,114140.0,1.98190907]
[1754241639079,0.98298616,114150.0,114140.0,1.01138571]
[1754241639279,0.98298616,114150.0,114140.0,1.62110907]
[1754241639676,0.98298616,114150.0,114140.0,1.01134571]
[1754241641879,0.98287664,114150.0,114140.0,1.01134571]
[1754241645985,0.98287664,114150.0,114140.0,1.62106907]
[1754241647592,0.98287664,114150.0,114140.0,1.01134571]
[1754241650390,0.37315328,114150.0,114140.0,1.01134571]
[1754241650594,0.98287664,114150.0,114140.0,1.01134571]
[1754241651790,0.37315328,114150.0,114140.0,1.01134571]
[1754241651987,0.98287664,114150.0,114140.0,1.62106907]
[1754241653484,0.98287664,114150.0,114140.0,1.62306907]
[1754241653685,0.98287664,114150.0,114140.0,1.62406907]
[1754241653891,0.98287664,114150.0,114140.0,1.98486907]
[1754241654093,0.98287664,114150.0,114140.0,1.98386907]
[1754241655290,0.98287664,114150.0,114140.0,1.98286907]
[1754241655490,0.97861664,114150.0,114140.0,1.98286907]
[1754241657692,0.97861664,114150.0,114140.0,1.98186907]
[1754241657889,0.97861664,114150.0,114140.0,1.98586907]
[1754241658194,0.97861664,114150.0,114140.0,1.37614571]
[1754241658495,0.97861664,114150.0,114140.0,1.98586907]
[1754241659096,0.97861664,114150.0,114140.0,1.37414571]
[1754241659297,0.97861664,114150.0,114140.0,1.98486907]
[1754241662297,0.97861664,114150.0,114140.0,1.71730907]
[1754241662599,0.98072664,114150.0,114140.0,1.98482907]
[1754241662899,0.98072664,114150.0,114140.0,1.01430571]
[1754241663102,1.59045,114150.0,114140.0,0.98396571]
[1754241663295,1.59177,114150.0,114140.0,1.01466571]
[1754241663489,1.59177,114150.0,114140.0,0.74714571]
[1754241663696,1.95257,114150.0,114140.0,0.5896271]
[1754241663896,1.95257,114150.0,114140.0,0.414404]
[1754241664201,1.95257,114150.0,114140.0,0.5896271]
[1754241664599,1.95257,114150.0,114140.0,0.118164]
[1754241664903,1.95257,114150.0,114140.0,0.383684]
[1754241665102,1.95257,114150.0,114140.0,0.382684]
[1754241665702,2.05260908,114150.0,114140.0,0.382684]
[1754241667509,2.22782508,114150.0,114140.0,0.382684]
[1754241667798,2.83754844,114150.0,114140.0,0.073634]
[1754241668106,2.22782508,114150.0,114140.0,0.073634]
[1754241669409,2.22782508,114150.0,114140.0,0.101594]
[1754241670000,2.23082508,114150.0,114140.0,0.101594]
[1754241670703,2.23182508,114150.0,114140.0,0.101594]
[1754241671090,2.23482508,114150.0,114140.0,0.101594]
[1754241672801,1.55759972,114150.0,114140.0,0.101594]
[1754241679611,1.38238372,114150.0,114140.0,0.101594]
[1754241691322,1.38238372,114150.0,114140.0,0.073634]
[1754241693020,1.55759972,114150.0,114140.0,0.073634]
[1754241693221,0.193753,114140.0,114130.0,0.02742]
[1754241693421,1.14829664,114140.0,114130.0,0.02742]
[1754241693621,1.24631797,114140.0,114130.0,0.02742]
[1754241694423,0.1752385,114130.0,114120.0,0.09412]
[1754241694620,1.82650244,114130.0,114120.0,0.11319]
[1754241695021,1.82650244,114130.0,114120.0,0.14061]
[1754241696326,1.82650244,114130.0,114120.0,0.255774]
[1754241696522,1.82750244,114130.0,114120.0,0.255774]
[1754241697022,1.82850244,114130.0,114120.0,0.142584]
[1754241697423,1.83050244,114130.0,114120.0,0.187284]
[1754241697625,1.83050244,114130.0,114120.0,0.236704]
[1754241698224,1.82950244,114130.0,114120.0,0.284214]
[1754241698425,1.83150244,114130.0,114120.0,0.284214]
[1754241699232,1.92302612,114130.0,114120.0,0.284214]
[1754241699831,1.92302612,114130.0,114120.0,0.211074]
[1754241700032,1.92302612,114130.0,114120.0,0.160734]
[1754241701637,1.92302612,114130.0,114120.0,0.206854]
[1754241703734,1.92302612,114130.0,114120.0,0.142584]
[1754241705729,1.92302612,114130.0,114120.0,0.115164]
[1754241705936,1.92302612,114130.0,114120.0,0.143704]
[1754241714039,1.92002612,114130.0,114120.0,0.143704]
[1754241714440,1.92202612,114130.0,114120.0,0.143704]
[1754241715141,1.92002612,114130.0,114120.0,0.115164]
[1754241715744,1.91802612,114130.0,114120.0,0.115164]
[1754241715944,1.92102612,114130.0,114120.0,0.115164]
[1754241716944,1.92302612,114130.0,114120.0,0.115164]
[1754241717339,1.92302612,114130.0,114120.0,0.061835]
[1754241717539,0.2234245,114100.0,114090.0,1.4794]
[1754241717842,1.19443033,114100.0,114090.0,1.22093825]
[1754241718143,1.19443033,114100.0,114090.0,1.32492825]
[1754241718743,1.19443033,114100.0,114090.0,1.50022815]
[1754241718946,1.19443033,114100.0,114090.0,1.50222815]
[1754241719750,1.19443033,114100.0,114090.0,1.57088527]
[1754241720245,1.19443033,114100.0,114090.0,1.57188527]
[1754241720446,1.21705018,114100.0,114090.0,1.57188527]
[1754241720646,1.21705018,114100.0,114090.0,1.68704926]
[1754241721845,1.19443033,114100.0,114090.0,1.68704926]
[1754241722449,1.21705215,114100.0,114090.0,1.68704926]
[1754241723246,1.21705387,114100.0,114090.0,1.68704926]
[1754241723750,0.60836546,114100.0,114090.0,1.68704926]
[1754241724054,1.21857129,114100.0,114090.0,1.68704926]
[1754241724953,0.85777129,114100.0,114090.0,1.68704926]
[1754241725647,0.24756546,114100.0,114090.0,1.68704926]
[1754241725848,0.85777129,114100.0,114090.0,1.68704926]
[1754241727050,0.24756546,114100.0,114090.0,1.68704926]
[1754241727246,0.85777129,114100.0,114090.0,2.04784926]
[1754241727548,0.85777129,114100.0,114090.0,1.68704926]
[1754241727744,0.85791256,114100.0,114090.0,1.68704926]
[1754241727944,0.24770673,114100.0,114090.0,1.68704926]
[1754241728151,0.85791256,114100.0,114090.0,1.68704926]
[1754241728752,0.85796258,114100.0,114090.0,1.68704926]
[1754241733654,0.83519777,114100.0,114090.0,1.68704926]
[1754241735659,0.22499194,114100.0,114090.0,1.68704926]
[1754241735856,0.83519777,114100.0,114090.0,1.68704926]
[1754241739662,0.83519777,114100.0,114090.0,0.54231926]
[1754241743563,0.83519777,114100.0,114090.0,0.90311926]
[1754241743763,0.83519777,114100.0,114090.0,1.51332509]
[1754241743764,0.78705777,114100.0,114090.0,1.51332509]
[1754241745766,0.78705777,114100.0,114090.0,1.78052509]
[1754241747468,0.80984646,114100.0,114090.0,1.78052509]
[1754241747869,0.78705777,114100.0,114090.0,1.78052509]
[1754241748470,0.17685194,114100.0,114090.0,1.78052509]
[1754241749871,0.78705777,114100.0,114090.0,1.78052509]
[1754241751172,0.17685194,114100.0,114090.0,1.78052509]
[1754241751376,0.78705777,114100.0,114090.0,1.78052509]
[1754241752771,0.78705777,114100.0,114090.0,1.17031926]
[1754241752973,0.78705777,114100.0,114090.0,1.78052509]
[1754241754170,0.80728777,114100.0,114090.0,1.78052509]
[1754241754362,0.83626777,114100.0,114090.0,1.78052509]
[1754241757368,0.83626777,114100.0,114090.0,1.17031926]
[1754241757564,0.83626777,114100.0,114090.0,1.78052509]
[1754241759872,0.83626777,114100.0,114090.0,1.17031926]
[1754241760776,0.83626777,114100.0,114090.0,0.80951926]
[1754241762079,0.83626777,114100.0,114090.0,1.07691926]
[1754241764178,0.83626777,114100.0,114090.0,0.80951926]
[1754241764379,0.83626777,114100.0,114090.0,1.07691926]
[1754241764581,0.22606194,114100.0,114090.0,1.07691926]
[1754241764774,0.83626777,114100.0,114090.0,1.07691926]
[1754241766679,0.22606194,114100.0,114090.0,1.07691926]
[1754241766976,0.83626777,114100.0,114090.0,1.07691926]
[1754241770376,0.85903038,114100.0,114090.0,1.07691926]
[1754241772982,0.85903038,114100.0,114090.0,1.43771926]
[1754241773180,0.83626777,114100.0,114090.0,1.43771926]
[1754241773684,0.85903028,114100.0,114090.0,1.43771926]
[1754241781485,1.46923611,114100.0,114090.0,0.48256111]
[1754241781690,1.83003611,114100.0,114090.0,0.68126399]
[1754241782586,1.83872337,114100.0,114090.0,0.68126399]
[1754241783394,1.83872337,114100.0,114090.0,0.67826399]
[1754241783784,1.83003611,114100.0,114090.0,0.67826399]
[1754241784286,1.83453611,114100.0,114090.0,0.41106399]
[1754241787695,1.83453611,114100.0,114090.0,0.45354399]
[1754241787993,1.83453611,114100.0,114090.0,0.47129399]
[1754241788292,1.83453611,114100.0,114090.0,0.50209399]
[1754241790296,1.83003611,114100.0,114090.0,0.50209399]
[1754241790887,1.21983028,114100.0,114090.0,0.52089399]
[1754241791088,1.21983028,114100.0,114090.0,0.72385319]
[1754241794090,0.24882445,114100.0,114090.0,1.33405902]
[1754241794396,0.85903028,114100.0,114090.0,0.72385319]
[1754241798204,0.24882445,114100.0,114090.0,0.72385319]
[1754241798396,0.85903028,114100.0,114090.0,0.72385319]
[1754241802801,0.24882445,114100.0,114090.0,0.72385319]
[1754241802999,0.85903028,114100.0,114090.0,0.72385319]
[1754241806710,0.24882445,114100.0,114090.0,0.72385319]
[1754241806911,0.85903028,114100.0,114090.0,0.72385319]
[1754241807110,0.24882445,114100.0,114090.0,0.72385319]
[1754241807303,0.85903028,114100.0,114090.0,0.72385319]
[1754241809720,0.85903028,114100.0,114090.0,0.45649319]
[1754241809911,0.85903028,114100.0,114090.0,0.72385319]
[1754241814027,0.85903028,114100.0,114090.0,0.72381319]
[1754241814727,0.24882445,114100.0,114090.0,0.72381319]
[1754241814929,0.85903028,114100.0,114090.0,0.72381319]
[1754241819137,0.19961385,114100.0,114090.0,1.33401902]
[1754241819323,0.02432995,114100.0,114090.0,2.57222485]
[1754241819518,0.78546943,114120.0,114110.0,0.3384385]
[1754241819725,0.78546943,114120.0,114110.0,1.30944433]
[1754241820327,0.78546943,114120.0,114110.0,1.42460832]
[1754241821523,0.83365943,114120.0,114110.0,1.42460832]
[1754241821730,0.83365943,114120.0,114110.0,0.81440249]
[1754241821923,0.83365943,114120.0,114110.0,0.45360249]
[1754241822122,0.2234536,114120.0,114110.0,0.45360249]
[1754241822330,0.83365943,114120.0,114110.0,0.81440249]
[1754241823932,0.85139943,114120.0,114110.0,0.81440249]
[1754241824620,0.2411936,114120.0,114110.0,0.81440249]
[1754241825729,0.2411936,114120.0,114110.0,1.08160249]
[1754241828132,0.78345196,114120.0,114110.0,1.08160249]
[1754241828830,0.2411936,114120.0,114110.0,1.08160249]
[1754241830439,0.78345196,114120.0,114110.0,0.72080249]
[1754241830828,0.80401196,114120.0,114110.0,0.72080249]
[1754241831028,1.34627032,114120.0,114110.0,0.69314249]
[1754241831337,0.80401196,114120.0,114110.0,0.69314249]
[1754241831539,0.80401196,114120.0,114110.0,0.42594249]
[1754241833632,1.16481196,114120.0,114110.0,0.42594249]
[1754241833931,1.18741969,114120.0,114110.0,0.42594249]
[1754241834132,1.27869341,114120.0,114110.0,0.31732249]
[1754241834532,1.27869341,114120.0,114110.0,0.36023249]
[1754241834847,1.27869341,114120.0,114110.0,0.40604249]
[1754241835035,1.27969341,114120.0,114110.0,0.40604249]
[1754241835539,1.28169341,114120.0,114110.0,0.40604249]
[1754241835731,0.73943505,114120.0,114110.0,0.40604249]
[1754241835933,1.28169341,114120.0,114110.0,0.40604249]
[1754241836437,1.28169341,114120.0,114110.0,0.23077399]
[1754241837141,1.82395177,114120.0,114110.0,0.23077399]
[1754241839232,0.73943505,114120.0,114110.0,0.23077399]
[1754241839436,1.28169341,114120.0,114110.0,0.40604249]
[1754241839736,1.28169341,114120.0,114110.0,0.42488249]
[1754241839936,1.28169341,114120.0,114110.0,0.45183249]
[1754241841041,1.28069341,114120.0,114110.0,0.45183249]
[1754241841230,1.28070208,114120.0,114110.0,0.45183249]
[1754241841744,1.28070208,114120.0,114110.0,0.42488249]
[1754241842042,1.27970208,114120.0,114110.0,0.42488249]
[1754241842245,1.27970208,114120.0,114110.0,0.24961399]
[1754241842542,1.28170208,114120.0,114110.0,0.24961399]
[1754241846648,1.95990594,114120.0,114110.0,0.24961399]
[1754241848644,1.95790594,114120.0,114110.0,0.25161399]
[1754241848947,1.95690594,114120.0,114110.0,0.25261399]
[1754241849149,1.95890594,114120.0,114110.0,0.14305399]
[1754241850549,1.95890594,114120.0,114110.0,0.11616399]
[1754241850751,1.95990594,114120.0,114110.0,0.13987399]
[1754241853052,1.95790594,114120.0,114110.0,0.13987399]
[1754241853455,1.95790594,114120.0,114110.0,0.11516399]
[1754241854154,1.95990594,114120.0,114110.0,0.13987399]
[1754241854953,1.9598643,114120.0,114110.0,0.13987399]
[1754241856255,0.73940208,114120.0,114110.0,0.13987399]
[1754241856459,1.9598643,114120.0,114110.0,0.18279399]
[1754241856659,1.9598643,114120.0,114110.0,0.22648399]
[1754241857452,1.9588643,114120.0,114110.0,0.22648399]
[1754241857655,1.9568643,114120.0,114110.0,0.22648399]
[1754241858656,1.9568643,114120.0,114110.0,0.11516399]
[1754241858851,1.9568643,114120.0,114110.0,0.13987399]
[1754241859048,1.9588643,114120.0,114110.0,0.13987399]
[1754241859551,1.9568643,114120.0,114110.0,0.13987399]
[1754241860256,1.9588643,114120.0,114110.0,0.13987399]
[1754241860854,1.9588643,114120.0,114110.0,0.18279399]
[1754241861449,1.9598643,114120.0,114110.0,0.18279399]
[1754241862858,1.9578643,114120.0,114110.0,0.18279399]
[1754241863046,1.9568643,114120.0,114110.0,0.18279399]
[1754241863557,1.9588643,114120.0,114110.0,0.18279399]
[1754241864059,1.9598643,114120.0,114110.0,0.18279399]
[1754241866458,1.9588643,114120.0,114110.0,0.18279399]
[1754241866659,1.9568643,114120.0,114110.0,0.18279399]
[1754241866853,1.9568643,114120.0,114110.0,0.13987399]
[1754241867360,1.9578643,114120.0,114110.0,0.13987399]
[1754241867858,1.9578643,114120.0,114110.0,0.11516399]
[1754241868256,1.9598643,114120.0,114110.0,0.11516399]
[1754241870561,2.0289462,114120.0,114110.0,0.11516399]
[1754241872160,2.3897462,114120.0,114110.0,0.11516399]
[1754241873852,2.3897462,114120.0,114110.0,0.13987399]
[1754241877266,1.16928398,114120.0,114110.0,0.13987399]
[1754241877559,2.3897462,114120.0,114110.0,0.13987399]
[1754241878862,2.3897462,114120.0,114110.0,0.11516399]
[1754241880061,2.3897462,114120.0,114110.0,0.13987399]
[1754241884263,1.16928398,114120.0,114110.0,0.11516399]
[1754241884468,2.3001043,114120.0,114110.0,0.44213269]
[1754241885467,2.3001043,114120.0,114110.0,0.26686399]
[1754241885969,2.3187943,114120.0,114110.0,0.26686399]
[1754241886167,2.3187943,114120.0,114110.0,0.44213269]
[1754241886463,2.3187943,114120.0,114110.0,0.26686399]
[1754241886765,2.3177943,114120.0,114110.0,0.26686399]
[1754241887564,0.80806947,114120.0,114110.0,1.0523638]
[1754241888067,0.80806947,114120.0,114110.0,0.44213269]
[1754241888266,0.85350947,114120.0,114110.0,0.44213269]
[1754241889264,0.87121947,114120.0,114110.0,0.44213269]
[1754241894664,0.87121947,114120.0,114110.0,0.44413269]
[1754241895066,0.87121947,114120.0,114110.0,0.44213269]
[1754241895366,0.87121947,114120.0,114110.0,0.44513269]
[1754241896674,0.87124561,114120.0,114110.0,0.44513269]
[1754241899267,1.50016672,114120.0,114110.0,0.44513269]
[1754241904776,0.2797045,114120.0,114110.0,0.44513269]
[1754241904978,0.88993561,114120.0,114110.0,0.44513269]
[1754241905175,0.1978645,114120.0,114110.0,1.3224838]
[1754241905475,0.1978645,114120.0,114110.0,1.6832838]
[1754241906477,0.80809561,114120.0,114110.0,1.6832838]
[1754241907180,0.78549471,114120.0,114110.0,1.6832838]
[1754241908085,0.78549471,114120.0,114110.0,1.07305269]
[1754241908293,0.78549471,114120.0,114110.0,1.6832838]
[1754241908490,0.78549471,114120.0,114110.0,1.9504838]
[1754241910488,0.3417738,114130.0,114120.0,0.3269534]
[1754241910788,1.00118417,114130.0,114120.0,1.56518451]
[1754241910988,0.84307037,114130.0,114120.0,1.56518451]
[1754241911190,0.82536037,114130.0,114120.0,1.56518451]
[1754241911390,0.80798037,114130.0,114120.0,1.56518451]
[1754241912095,0.80798037,114130.0,114120.0,1.57403269]
[1754241912490,0.80798037,114130.0,114120.0,1.57603269]
[1754241912793,0.83466037,114130.0,114120.0,1.57603269]
[1754241913398,0.22442926,114130.0,114120.0,1.57603269]
[1754241913597,0.02249926,114130.0,114120.0,2.37727836]
[1754241913991,0.19773726,114130.0,114120.0,2.38127836]
[1754241914388,0.19773726,114130.0,114120.0,1.77104725]
[1754241914599,0.02249926,114130.0,114120.0,2.38127836]
[1754241914784,0.19773726,114130.0,114120.0,2.38127836]
[1754241915189,0.19773726,114130.0,114120.0,2.49644235]
[1754241916197,0.02249926,114130.0,114120.0,2.49644235]
[1754241916399,0.02249926,114130.0,114120.0,1.27598013]
[1754241916600,0.02249926,114130.0,114120.0,2.49644235]
[1754241916801,0.02249926,114130.0,114120.0,1.81800128]
[1754241917701,0.19773726,114130.0,114120.0,1.27598013]
[1754241917888,0.19773726,114130.0,114120.0,1.81800128]
[1754241919604,0.19773726,114130.0,114120.0,1.64275328]
[1754241921104,0.19773726,114130.0,114120.0,1.10073213]
[1754241921305,0.19773726,114130.0,114120.0,1.64275328]
[1754241922204,0.19773726,114130.0,114120.0,1.10073213]
[1754241922411,0.19773726,114130.0,114120.0,1.64275328]
[1754241922706,0.25905726,114130.0,114120.0,1.10073213]
[1754241923005,0.81884841,114130.0,114120.0,1.00693213]
[1754241923809,0.79634915,114130.0,114120.0,1.00693213]
[1754241924008,0.79634915,114130.0,114120.0,1.36773213]
[1754241924009,0.254328,114130.0,114120.0,1.36773213]
[1754241924210,0.236558,114130.0,114120.0,1.36773213]
[1754241927411,0.25904163,114130.0,114120.0,1.36773213]
[1754241927814,0.25904163,114130.0,114120.0,1.10073213]
[1754241928009,0.236558,114130.0,114120.0,1.36773213]
[1754241929108,0.236558,114130.0,114120.0,1.36673213]
[1754241930307,0.236558,114130.0,114120.0,1.36473213]
[1754241932112,0.25905396,114130.0,114120.0,1.36473213]
[1754241932813,0.219378,114130.0,114120.0,1.36473213]
[1754241933005,0.175238,114130.0,114120.0,1.36473213]
[1754241933414,0.175238,114130.0,114120.0,1.90675328]
[1754241934009,0.175238,114130.0,114120.0,1.90875328]
[1754241934314,0.175238,114130.0,114120.0,1.36573213]
[1754241934504,0.175238,114130.0,114120.0,1.36773213]
[1754241935213,0.175238,114130.0,114120.0,1.36573213]
[1754241935512,0.175238,114130.0,114120.0,1.36673213]
[1754241936207,0.19765506,114130.0,114120.0,1.36473213]
[1754241936403,0.175238,114130.0,114120.0,1.36473213]
[1754241937711,0.133018,114130.0,114120.0,1.90675328]
[1754241939806,0.133018,114130.0,114120.0,1.36473213]
[1754241940007,0.133018,114130.0,114120.0,1.90675328]
[1754241940809,0.133018,114130.0,114120.0,1.90575328]
[1754241941009,0.133018,114130.0,114120.0,1.90875328]
[1754241942010,0.133018,114130.0,114120.0,1.91175328]
[1754241942413,0.133018,114130.0,114120.0,1.10273213]
[1754241942613,0.133018,114130.0,114120.0,1.97963365]
[1754241942614,0.86112952,114130.0,114120.0,1.97963365]
[1754241942814,0.88355577,114130.0,114120.0,1.97963365]
[1754241943709,0.88355577,114130.0,114120.0,1.97863365]
[1754241944615,0.27361425,114130.0,114120.0,1.36769213]
[1754241945415,0.27361425,114130.0,114120.0,1.36469213]
[1754241945616,0.27361425,114130.0,114120.0,1.36669213]
[1754241947311,0.251188,114130.0,114120.0,1.36669213]
[1754241949820,0.224708,114130.0,114120.0,1.36669213]
[1754241950120,0.180668,114130.0,114120.0,1.36669213]
[1754241953721,0.20309391,114130.0,114120.0,1.36669213]
[1754241955125,0.15544391,114130.0,114120.0,1.36669213]
[1754241960123,0.15544391,114130.0,114120.0,1.90883314]
[1754241960625,0.15544391,114130.0,114120.0,1.36669213]
[1754241963733,0.133018,114130.0,114120.0,1.36669213]
[1754241964730,0.74287157,114130.0,114120.0,1.9765457]
[1754241965128,0.133018,114130.0,114120.0,1.9765457]
[1754241965329,0.74287157,114130.0,114120.0,1.9765457]
[1754241967535,0.74287157,114130.0,114120.0,1.36669213]
[1754241967836,0.74287157,114130.0,114120.0,1.9765457]
[1754241968232,0.74287157,114130.0,114120.0,1.36669213]
[1754241968432,0.75997157,114130.0,114120.0,1.9765457]
[1754241968833,0.79052157,114130.0,114120.0,1.9765457]
[1754241969034,0.79052157,114130.0,114120.0,1.9745457]
[1754241969228,0.79052157,114130.0,114120.0,1.9775457]
[1754241969827,0.133018,114130.0,114120.0,1.9775457]
[1754241970030,0.74287157,114130.0,114120.0,1.9775457]
[1754241970533,0.74287157,114130.0,114120.0,1.9765457]
[1754241970739,0.74287157,114130.0,114120.0,1.9755457]
[1754241970938,0.74287157,114130.0,114120.0,1.9765457]
[1754241971238,0.77197157,114130.0,114120.0,1.9765457]
[1754241971433,0.77197157,114130.0,114120.0,1.9745457]
[1754241971640,0.77197157,114130.0,114120.0,1.9755457]
[1754241973040,0.74287157,114130.0,114120.0,1.9755457]
[1754241973241,0.85650157,114130.0,114120.0,1.9755457]
[1754241974743,0.85650157,114130.0,114120.0,1.36561213]
[1754241975540,0.246648,114130.0,114120.0,1.36561213]
[1754241975747,0.85650157,114130.0,114120.0,1.36561213]
[1754241976344,0.85650157,114130.0,114120.0,1.9754657]
[1754241980653,0.85650157,114130.0,114120.0,1.6146657]
[1754241980856,0.85650157,114130.0,114120.0,1.9754657]
[1754241985052,0.85650157,114130.0,114120.0,1.36561213]
[1754241985457,0.85650157,114130.0,114120.0,1.9754657]
[1754241988954,0.85650157,114130.0,114120.0,1.09873213]
[1754241989160,0.89518538,114130.0,114120.0,0.99592395]
[1754241989653,0.26904181,114130.0,114120.0,0.99592395]
[1754241989860,0.87889538,114130.0,114120.0,0.99592395]
[1754241990053,0.87889538,114130.0,114120.0,1.60577752]
[1754241990259,0.85650157,114130.0,114120.0,1.60577752]
[1754241990660,0.87889404,114130.0,114120.0,1.60577752]
[1754241994167,0.87889404,114130.0,114120.0,1.61440121]
[1754241994664,0.76526404,114130.0,114120.0,1.97520121]
[1754241995066,0.02239247,114130.0,114120.0,1.97520121]
[1754241995258,0.2628506,114140.0,114130.0,0.321478]
[1754241995553,0.89506963,114140.0,114130.0,1.29213157]
[1754242000065,0.89506963,114140.0,114130.0,1.55933157]
[1754242000266,0.89506963,114140.0,114130.0,1.67449556]
[1754242000965,0.92273963,114140.0,114130.0,1.67449556]
[1754242002166,0.94768963,114140.0,114130.0,1.67449556]
[1754242002562,0.96415963,114140.0,114130.0,1.67449556]
[1754242004969,0.96415963,114140.0,114130.0,1.67549556]